bitfinex/quotes_BTCUSD_20250716
["timestamp","ask_amount","ask_price","bid_price","bid_amount"]
[1752641246537,0.67386029,117750.0,117740.0,0.51253661]
[1752641247147,0.22344201,117750.0,117740.0,0.51253661]
[1752641247317,0.67386029,117750.0,117740.0,0.51253661]
[1752641247879,0.22344201,117750.0,117740.0,0.51253661]
[1752641248134,0.67386029,117750.0,117740.0,0.21903661]
[1752641248366,0.22344201,117750.0,117740.0,0.21903661]
[1752641248774,0.67386029,117750.0,117740.0,0.21903661]
[1752641249642,0.22344201,117750.0,117740.0,0.21903661]
[1752641249809,0.67386029,117750.0,117740.0,0.21903661]
[1752641251623,0.22344201,117750.0,117740.0,0.21903661]
[1752641253905,0.20724201,117750.0,117740.0,0.21903661]
[1752641257371,0.19094201,117750.0,117740.0,0.21903661]
[1752641257584,0.19094201,117750.0,117740.0,0.22100661]
[1752641259454,0.18782201,117750.0,117740.0,0.22100661]
[1752641261018,0.18782201,117750.0,117740.0,0.55888727]
[1752641261733,0.20719201,117750.0,117740.0,0.55888727]
[1752641261860,0.20719201,117750.0,117740.0,0.21903661]
[1752641262082,0.54507267,117750.0,117740.0,0.21903661]
[1752641263371,0.56067267,117750.0,117740.0,0.21903661]
[1752641265569,0.22279201,117750.0,117740.0,0.21903661]
[1752641265775,0.56067267,117750.0,117740.0,0.21903661]
[1752641266541,0.22279201,117750.0,117740.0,0.21903661]
[1752641266784,0.56067267,117750.0,117740.0,0.21903661]
[1752641270490,0.54507267,117750.0,117740.0,0.21903661]
[1752641273076,0.20719201,117750.0,117740.0,0.21903661]
[1752641273271,0.54507267,117750.0,117740.0,0.21903661]
[1752641278127,0.54507267,117750.0,117740.0,0.08803661]
[1752641278354,0.00849458,117720.0,117710.0,0.3278]
[1752641278589,0.5212699,117720.0,117710.0,0.2935]
[1752641278780,0.5212699,117720.0,117710.0,0.42422]
[1752641279263,0.5212699,117720.0,117710.0,0.42624]
[1752641279497,0.5212699,117720.0,117710.0,0.5058936]
[1752641280369,0.5182999,117720.0,117710.0,0.5058936]
[1752641280994,0.18041924,117720.0,117710.0,0.5058936]
[1752641281657,0.18041924,117720.0,117710.0,0.53177794]
[1752641282521,0.18041924,117720.0,117710.0,0.13072]
[1752641282522,0.71966559,117720.0,117710.0,0.13072]
[1752641282783,0.75146559,117720.0,117710.0,0.13072]
[1752641284604,0.73486559,117720.0,117710.0,0.13072]
[1752641285022,0.71966559,117720.0,117710.0,0.13072]
[1752641286204,0.26889952,117720.0,117710.0,0.13072]
[1752641286421,0.71966559,117720.0,117710.0,0.16912789]
[1752641289186,0.26889952,117720.0,117710.0,0.16912789]
[1752641289357,0.71966559,117720.0,117710.0,0.16912789]
[1752641291134,0.26889952,117720.0,117710.0,0.16912789]
[1752641291565,0.71966559,117720.0,117710.0,0.16912789]
[1752641292442,0.71966559,117720.0,117710.0,0.13072]
[1752641292652,0.73626559,117720.0,117710.0,0.13072]
[1752641292859,0.75166559,117720.0,117710.0,0.13072]
[1752641298442,0.1784044,117710.0,117700.0,0.22757004]
[1752641298652,0.1995744,117710.0,117700.0,0.22757004]
[1752641298858,0.65034047,117710.0,117700.0,0.22757004]
[1752641299514,0.18693125,117690.0,117680.0,0.41253386]
[1752641299721,0.18693125,117690.0,117680.0,0.54572972]
[1752641300667,0.18693125,117690.0,117680.0,0.57153001]
[1752641301606,0.18693125,117690.0,117680.0,0.44081001]
[1752641301854,0.18693125,117690.0,117680.0,0.57153001]
[1752641302329,0.18893125,117690.0,117680.0,0.58864662]
[1752641302577,0.18693125,117690.0,117680.0,0.58864662]
[1752641302838,0.19093125,117690.0,117680.0,0.58864662]
[1752641303893,0.19093125,117690.0,117680.0,0.502887]
[1752641305303,0.19093125,117690.0,117680.0,0.470687]
[1752641305532,0.19307125,117690.0,117680.0,0.470687]
[1752641305961,0.19307125,117690.0,117680.0,0.339967]
[1752641306166,0.19307125,117690.0,117680.0,0.470687]
[1752641306616,0.19307125,117690.0,117680.0,0.55644662]
[1752641307896,0.19307125,117690.0,117680.0,0.57274662]
[1752641308763,0.20150671,117690.0,117680.0,0.57274662]
[1752641308993,0.19307125,117690.0,117680.0,0.55644662]
[1752641309211,0.19307125,117690.0,117680.0,0.54190577]
[1752641309461,0.19307125,117690.0,117680.0,0.53865577]
[1752641310110,0.19307125,117690.0,117680.0,0.24515577]
[1752641310319,0.19307125,117690.0,117680.0,0.21935548]
[1752641311323,0.66216732,117690.0,117680.0,0.21738548]
[1752641311603,0.67716732,117690.0,117680.0,0.13162586]
[1752641312055,0.22640125,117690.0,117680.0,0.13162586]
[1752641312272,0.23494881,117690.0,117680.0,0.13162586]
[1752641312691,0.21994881,117690.0,117680.0,0.13162586]
[1752641314887,0.35066881,117690.0,117680.0,0.13162586]
[1752641315088,0.6889341,117690.0,117680.0,0.13162586]
[1752641316406,0.6889341,117690.0,117680.0,0.17869169]
[1752641317037,0.6889341,117690.0,117680.0,0.13162586]
[1752641318658,0.6735341,117690.0,117680.0,0.13162586]
[1752641318830,0.5428141,117690.0,117680.0,0.13162586]
[1752641319197,0.20454881,117690.0,117680.0,0.13162586]
[1752641319439,0.5428141,117690.0,117680.0,0.13162586]
[1752641319826,0.5428141,117690.0,117680.0,0.21251822]
[1752641321791,0.5428141,117690.0,117680.0,0.13162586]
[1752641322001,0.53426654,117690.0,117680.0,0.13162586]
[1752641322220,0.53133654,117690.0,117680.0,0.13358586]
[1752641323175,0.19093125,117690.0,117680.0,1.02296647]
[1752641323385,0.18243472,117690.0,117680.0,0.84451644]
[1752641323587,0.18243472,117690.0,117680.0,0.59201077]
[1752641324275,0.18243472,117690.0,117680.0,0.25374548]
[1752641324477,0.18243472,117690.0,117680.0,0.59201077]
[1752641328839,0.18243472,117690.0,117680.0,0.25374548]
[1752641329050,0.18243472,117690.0,117680.0,0.59201077]
[1752641329673,0.18243472,117690.0,117680.0,0.25374548]
[1752641329876,0.18243472,117690.0,117680.0,0.59201077]
[1752641334574,0.18243472,117690.0,117680.0,0.76196318]
[1752641334752,0.18243472,117690.0,117680.0,0.42369789]
[1752641334956,0.18243472,117690.0,117680.0,0.76196318]
[1752641336331,0.18243472,117690.0,117680.0,0.59201077]
[1752641340213,0.18243472,117690.0,117680.0,0.25374548]
[1752641340429,0.18243472,117690.0,117680.0,0.59201077]
[1752641341561,0.18243472,117690.0,117680.0,0.25374548]
[1752641341803,0.18243472,117690.0,117680.0,0.59201077]
[1752641343060,0.18243472,117690.0,117680.0,0.25374548]
[1752641343265,0.18243472,117690.0,117680.0,0.59201077]
[1752641343604,0.18243472,117690.0,117680.0,0.09182548]
[1752641343806,0.18243472,117690.0,117680.0,0.56077077]
[1752641344229,0.54094001,117690.0,117680.0,0.13158586]
[1752641344445,0.55654001,117690.0,117680.0,0.13158586]
[1752641344896,0.54094001,117690.0,117680.0,0.13158586]
[1752641345104,0.52564001,117690.0,117680.0,0.13158586]
[1752641347712,0.18737472,117690.0,117680.0,0.13158586]
[1752641347911,0.52564001,117690.0,117680.0,0.21734548]
[1752641350888,0.52564001,117690.0,117680.0,0.13158586]
[1752641351490,0.18737472,117690.0,117680.0,0.13158586]
[1752641351706,0.52564001,117690.0,117680.0,0.13158586]
[1752641352329,0.18737472,117690.0,117680.0,0.13158586]
[1752641354198,0.18737472,117690.0,117680.0,0.46985115]
[1752641354416,0.18737472,117690.0,117680.0,0.21734548]
[1752641354755,0.18737472,117690.0,117680.0,0.21945548]
[1752641356830,0.18737472,117690.0,117680.0,0.13369586]
[1752641358139,0.18440472,117690.0,117680.0,0.47196115]
[1752641358587,0.18440472,117690.0,117680.0,0.13369586]
[1752641358801,0.18440472,117690.0,117680.0,0.47196115]
[1752641361489,0.18440472,117690.0,117680.0,0.13369586]
[1752641362007,0.18440472,117690.0,117680.0,0.54201461]
[1752641364678,0.18440472,117690.0,117680.0,0.54505461]
[1752641365122,0.18440472,117690.0,117680.0,0.59282449]
[1752641365327,0.18243472,117690.0,117680.0,0.76432203]
[1752641366179,0.18243472,117690.0,117680.0,0.77281943]
[1752641366392,0.18243472,117690.0,117680.0,0.44305147]
[1752641366583,0.18243472,117690.0,117680.0,1.11958205]
[1752641366752,0.19942807,117690.0,117680.0,1.12807923]
[1752641366959,0.19942807,117690.0,117680.0,0.78981394]
[1752641367203,0.19093154,117690.0,117680.0,0.76432203]
[1752641367422,0.18243479,117690.0,117680.0,0.76432203]
[1752641368971,0.17393797,117690.0,117680.0,0.13665586]
[1752641369178,0.17393797,117690.0,117680.0,0.47492115]
[1752641370285,0.17597797,117690.0,117680.0,0.47188115]
[1752641370500,0.17908797,117690.0,117680.0,0.47188115]
[1752641370715,0.17597797,117690.0,117680.0,0.47188115]
[1752641371576,0.17597797,117690.0,117680.0,0.13361586]
[1752641372233,0.17597797,117690.0,117680.0,0.21937548]
[1752641372555,0.17597797,117690.0,117680.0,0.55764077]
[1752641373482,0.17597797,117690.0,117680.0,0.47188115]
[1752641373791,0.17597797,117690.0,117680.0,0.13361586]
[1752641376535,0.51735326,117690.0,117680.0,0.00090586]
[1752641376737,0.53255326,117690.0,117680.0,0.13146586]
[1752641376973,0.54905326,117690.0,117680.0,0.13146586]
[1752641378759,0.54815326,117690.0,117680.0,0.13146586]
[1752641386238,0.20988797,117690.0,117680.0,0.13146586]
[1752641386458,0.54815326,117690.0,117680.0,0.13146586]
[1752641387979,0.54815326,117690.0,117680.0,0.13142586]
[1752641389948,0.67867326,117690.0,117680.0,0.13142586]
[1752641397079,0.76418354,117690.0,117680.0,0.13142586]
[1752641397330,0.76418354,117690.0,117680.0,0.00090586]
[1752641400820,0.74858354,117690.0,117680.0,0.00090586]
[1752641401027,0.76408354,117690.0,117680.0,0.00090586]
[1752641401237,0.63356354,117690.0,117680.0,0.00090586]
[1752641401910,1.18806845,117690.0,117680.0,0.00090586]
[1752641402110,1.10230883,117690.0,117680.0,0.00090586]
[1752641402526,0.76404354,117690.0,117680.0,0.00090586]
[1752641402917,0.74854354,117690.0,117680.0,0.00090586]
[1752641403367,0.74454354,117690.0,117680.0,0.00090586]
[1752641404315,0.74454354,117690.0,117680.0,0.00690586]
[1752641406059,0.76024354,117690.0,117680.0,0.00690586]
[1752641421044,1.86253374,117690.0,117680.0,0.00690586]
[1752641421260,1.52426845,117690.0,117680.0,1e-08]
[1752641421449,1.57422845,117690.0,117680.0,1e-08]
[1752641421805,1.59975645,117690.0,117680.0,1e-08]
[1752641422029,0.18697892,117660.0,117650.0,0.03566]
[1752641422238,0.61075449,117660.0,117650.0,0.03771058]
[1752641423874,0.61075449,117660.0,117650.0,0.04071058]
[1752641425065,0.61276449,117660.0,117650.0,0.02155058]
[1752641425255,0.67938396,117660.0,117650.0,0.02155058]
[1752641425457,0.61276449,117660.0,117650.0,0.02155058]
[1752641425977,0.61276449,117660.0,117650.0,0.04031058]
[1752641426577,0.61276449,117660.0,117650.0,0.02461058]
[1752641426783,0.61276449,117660.0,117650.0,0.02155058]
[1752641427030,0.74316449,117660.0,117650.0,0.02155058]
[1752641428229,0.74316449,117660.0,117650.0,0.03805058]
[1752641428230,0.4048992,117660.0,117650.0,0.03805058]
[1752641428429,0.74316449,117660.0,117650.0,0.03805058]
[1752641429579,0.4048992,117660.0,117650.0,0.03805058]
[1752641429763,0.74316449,117660.0,117650.0,0.04111058]
[1752641433492,0.74610449,117660.0,117650.0,0.00305058]
[1752641437617,0.4078392,117660.0,117650.0,0.00305058]
[1752641437831,0.74610449,117660.0,117650.0,0.00305058]
[1752641444772,0.74629449,117660.0,117650.0,0.00305058]
[1752641446666,0.74625449,117660.0,117650.0,0.00305058]
[1752641446992,1.08451978,117660.0,117650.0,0.00305058]
[1752641447623,0.74625449,117660.0,117650.0,0.00305058]
[1752641449586,1.08451978,117660.0,117650.0,0.00305058]
[1752641450769,0.4079892,117660.0,117650.0,0.00305058]
[1752641451004,1.08451978,117660.0,117650.0,0.00305058]
[1752641452383,0.74625449,117660.0,117650.0,0.00305058]
[1752641452857,1.08451978,117660.0,117650.0,0.00305058]
[1752641454559,0.74625449,117660.0,117650.0,0.00305058]
[1752641455444,0.76215449,117660.0,117650.0,0.00305058]
[1752641455673,0.74625449,117660.0,117650.0,0.00305058]
[1752641456656,0.4079892,117660.0,117650.0,0.00305058]
[1752641456923,1.08451978,117660.0,117650.0,0.00305058]
[1752641459169,1.32462507,117660.0,117650.0,0.00305058]
[1752641459378,1.11667978,117660.0,117650.0,0.00305058]
[1752641459798,0.4401492,117660.0,117650.0,0.00305058]
[1752641460005,1.11667978,117660.0,117650.0,0.00305058]
[1752641460863,0.2776292,117660.0,117650.0,0.00305058]
[1752641461050,0.74321449,117660.0,117650.0,0.03667058]
[1752641462350,0.74321449,117660.0,117650.0,0.02107058]
[1752641462568,0.74621449,117660.0,117650.0,0.02107058]
[1752641462804,0.74621449,117660.0,117650.0,0.00305058]
[1752641463465,1.08447978,117660.0,117650.0,0.00305058]
[1752641464705,0.4079492,117660.0,117650.0,0.00305058]
[1752641464909,1.08447978,117660.0,117650.0,0.00305058]
[1752641465109,1.14545268,117660.0,117650.0,0.00305058]
[1752641465551,1.08447978,117660.0,117650.0,0.00305058]
[1752641465962,0.4079492,117660.0,117650.0,0.00305058]
[1752641466183,1.08447978,117660.0,117650.0,0.00305058]
[1752641466567,0.74621449,117660.0,117650.0,0.00305058]
[1752641467296,0.2776292,117660.0,117650.0,0.00305058]
[1752641467512,0.2776292,117660.0,117650.0,0.02442058]
[1752641467513,0.4027692,117660.0,117650.0,0.02442058]
[1752641467751,0.4027692,117660.0,117650.0,0.04062058]
[1752641467968,0.74103449,117660.0,117650.0,0.04062058]
[1752641469549,0.4027692,117660.0,117650.0,0.04062058]
[1752641469746,0.74103449,117660.0,117650.0,0.04062058]
[1752641471384,0.61075449,117660.0,117650.0,0.04062058]
[1752641472485,0.18697892,117660.0,117650.0,0.04062058]
[1752641472723,0.20397624,117660.0,117650.0,0.6398379]
[1752641472952,0.19547776,117660.0,117650.0,0.6398379]
[1752641473375,0.19547776,117660.0,117650.0,0.64833732]
[1752641474244,0.00849855,117660.0,117650.0,0.65683602]
[1752641474459,0.02549573,117660.0,117650.0,0.65683602]
[1752641474665,0.00849805,117670.0,117660.0,0.21917906]
[1752641474895,0.02549407,117670.0,117660.0,1.1308407]
[1752641475113,0.02549407,117670.0,117660.0,0.91063497]
[1752641475381,0.20395926,117670.0,117660.0,0.82882346]
[1752641476009,0.20395926,117670.0,117660.0,0.37778861]
[1752641476294,0.20395926,117670.0,117660.0,0.38628724]
[1752641476930,0.19546143,117670.0,117660.0,0.37778861]
[1752641477647,0.02549458,117670.0,117660.0,0.37978861]
[1752641477878,0.01699624,117670.0,117660.0,0.38828716]
[1752641478851,0.02549407,117670.0,117660.0,0.38828716]
[1752641479144,0.01699588,117670.0,117660.0,0.38828716]
[1752641479515,0.025494,117670.0,117660.0,0.38828716]
[1752641480647,0.025494,117670.0,117660.0,0.83932201]
[1752641481047,0.01699581,117670.0,117660.0,0.83932201]
[1752641481221,0.01699581,117670.0,117660.0,0.92508163]
[1752641481596,0.02549393,117670.0,117660.0,1.21858163]
[1752641481903,0.01699581,117670.0,117660.0,1.21858163]
[1752641482131,0.18697254,117680.0,117670.0,0.22646121]
[1752641482363,0.18697254,117680.0,117670.0,0.23175121]
[1752641482531,0.18697254,117680.0,117670.0,0.28573437]
[1752641483038,0.18697254,117680.0,117670.0,0.23175121]
[1752641483266,0.18697254,117680.0,117670.0,0.22325331]
[1752641483465,0.18697254,117680.0,117670.0,0.21475519]
[1752641483661,0.18697254,117680.0,117670.0,0.22325346]
[1752641484737,0.18697254,117680.0,117670.0,0.22625346]
[1752641485362,0.17847514,117680.0,117670.0,0.22625346]
[1752641486202,0.17847514,117680.0,117670.0,0.31201308]
[1752641488941,0.17847514,117680.0,117670.0,0.32051127]
[1752641489144,0.16997752,117680.0,117670.0,0.23475165]
[1752641489339,0.16997752,117680.0,117670.0,0.22625346]
[1752641489549,0.16997752,117680.0,117670.0,0.23475165]
[1752641491187,0.16997752,117680.0,117670.0,0.22625346]
[1752641491372,0.16997752,117680.0,117670.0,0.04778834]
[1752641492361,0.16997752,117680.0,117670.0,0.21775519]
[1752641493859,0.16997752,117680.0,117670.0,0.04778834]
[1752641494078,0.16997752,117680.0,117670.0,0.03929]
[1752641495523,0.16997752,117680.0,117670.0,0.20925685]
[1752641495996,0.16997752,117680.0,117670.0,0.29501647]
[1752641496198,0.16997752,117680.0,117670.0,0.30351481]
[1752641497304,0.16997752,117680.0,117670.0,0.31805566]
[1752641497558,0.18697239,117680.0,117670.0,0.67332645]
[1752641497805,0.19547001,117680.0,117670.0,0.67332645]
[1752641499447,0.19547001,117680.0,117670.0,0.68182443]
[1752641499682,0.01699487,117680.0,117670.0,0.69032226]
[1752641500092,0.01699444,117680.0,117670.0,0.69032226]
[1752641500276,0.00849711,117680.0,117670.0,0.69032226]
[1752641500607,0.01699436,117680.0,117670.0,0.69032226]
[1752641501083,0.02549176,117680.0,117670.0,0.60456264]
[1752641501346,0.03398923,117680.0,117670.0,0.60456264]
[1752641501558,0.21243918,117680.0,117670.0,0.60456264]
[1752641502726,0.04248677,117680.0,117670.0,0.60456264]
[1752641503056,0.03398923,117680.0,117670.0,0.60456264]
[1752641503231,0.02549176,117680.0,117670.0,0.69032226]
[1752641503481,0.03398923,117680.0,117670.0,0.69032226]
[1752641503878,0.04248677,117680.0,117670.0,0.69032226]
[1752641504196,0.21243918,117680.0,117670.0,0.69032226]
[1752641504702,0.04248677,117680.0,117670.0,0.69032226]
[1752641505269,0.04248677,117680.0,117670.0,0.98382226]
[1752641505832,0.20394244,117680.0,117670.0,0.97532443]
[1752641506016,0.19544504,117680.0,117670.0,0.96682645]
[1752641506432,0.19544504,117680.0,117670.0,0.88106683]
[1752641507623,0.18694757,117680.0,117670.0,0.88106683]
[1752641508482,0.18694757,117680.0,117670.0,0.52579604]
[1752641508483,0.16995241,117680.0,117670.0,0.52579604]
[1752641508686,0.16995241,117680.0,117670.0,0.34733085]
[1752641509127,0.51035703,117680.0,117670.0,0.34415085]
[1752641509335,0.52956703,117680.0,117670.0,0.44327085]
[1752641510253,0.17519241,117680.0,117670.0,0.44327085]
[1752641510461,0.17208241,117680.0,117670.0,0.69899732]
[1752641510702,0.51035703,117680.0,117670.0,0.69899732]
[1752641510913,0.51035703,117680.0,117670.0,0.70749566]
[1752641511125,0.51035703,117680.0,117670.0,0.41697566]
[1752641511336,0.51035703,117680.0,117670.0,0.24700881]
[1752641511681,0.17208241,117680.0,117670.0,0.41697566]
[1752641511931,0.51035703,117680.0,117670.0,0.41697566]
[1752641512990,0.51035703,117680.0,117670.0,0.42547393]
[1752641513391,0.51035703,117680.0,117670.0,0.33971431]
[1752641513682,0.51035703,117680.0,117670.0,0.33121604]
[1752641513919,0.51035703,117680.0,117670.0,0.15275085]
[1752641517081,0.51035703,117680.0,117670.0,0.44625085]
[1752641517465,0.51035703,117680.0,117670.0,0.44327085]
[1752641519704,0.51035703,117680.0,117670.0,0.52903047]
[1752641520259,0.51035703,117680.0,117670.0,0.70749566]
[1752641520468,0.51035703,117680.0,117670.0,0.71047566]
[1752641521304,0.51035703,117680.0,117670.0,0.45474919]
[1752641521520,0.51035703,117680.0,117670.0,0.44625085]
[1752641522569,0.51346703,117680.0,117670.0,0.44327085]
[1752641523221,0.96895193,117680.0,117670.0,0.2965]
[1752641523466,1.09903193,117680.0,117670.0,0.2965]
[1752641525157,0.87367565,117680.0,117670.0,0.2965]
[1752641527180,0.87367565,117680.0,117670.0,0.339158]
[1752641527388,0.87367565,117680.0,117670.0,0.2965]
[1752641528884,0.87367565,117680.0,117670.0,0.003]
[1752641533441,0.85837565,117680.0,117670.0,0.003]
[1752641534142,0.40718269,117680.0,117670.0,0.003]
[1752641534356,0.85837565,117680.0,117670.0,0.003]
[1752641536170,0.40718269,117680.0,117670.0,0.003]
[1752641536356,0.62327537,117680.0,117670.0,0.00496]
[1752641536594,0.62327537,117680.0,117670.0,0.00807]
[1752641536801,0.62327537,117680.0,117670.0,0.04037]
[1752641537236,0.17208241,117680.0,117670.0,0.04037]
[1752641537642,0.17208241,117680.0,117670.0,0.21033685]
[1752641537853,0.16995241,117680.0,117670.0,0.25712752]
[1752641538666,0.16995241,117680.0,117670.0,0.21033685]
[1752641538865,0.16995241,117680.0,117670.0,0.04037]
[1752641540477,0.17204241,117680.0,117670.0,0.04037]
[1752641540691,0.17204241,117680.0,117670.0,0.00496]
[1752641541603,0.62323537,117680.0,117670.0,0.00496]
[1752641544819,0.62633537,117680.0,117670.0,0.00496]
[1752641547006,0.51347977,117680.0,117670.0,0.00496]
[1752641547235,0.17514241,117680.0,117670.0,0.00496]
[1752641547446,0.85181713,117680.0,117670.0,0.00496]
[1752641547662,0.51347977,117680.0,117670.0,0.00496]
[1752641550775,0.85181713,117680.0,117670.0,0.003]
[1752641550988,0.96922741,117680.0,117670.0,0.003]
[1752641553038,0.74378284,117680.0,117670.0,0.003]
[1752641553765,0.87382284,117680.0,117670.0,0.003]
[1752641554725,0.42259269,117680.0,117670.0,0.003]
[1752641554937,0.87382284,117680.0,117670.0,0.003]
[1752641559022,0.42259269,117680.0,117670.0,0.003]
[1752641559234,0.87382284,117680.0,117670.0,0.003]
[1752641563898,0.85772284,117680.0,117670.0,0.003]
[1752641566553,0.40649269,117680.0,117670.0,0.003]
[1752641566677,0.85772284,117680.0,117670.0,0.003]
[1752641567096,0.84192284,117680.0,117670.0,0.003]
[1752641567998,0.16995241,117680.0,117670.0,0.03906]
[1752641568211,0.16995241,117680.0,117670.0,0.2793033]
[1752641568479,0.16995241,117680.0,117670.0,0.10933645]
[1752641568634,0.16995241,117680.0,117670.0,0.23933645]
[1752641569751,0.16995241,117680.0,117670.0,0.16906]
[1752641571685,0.62325256,117680.0,117670.0,0.15108]
[1752641571899,0.62629256,117680.0,117670.0,0.13508]
[1752641573317,0.62325256,117680.0,117670.0,0.13508]
[1752641575317,0.62325256,117680.0,117670.0,0.16548]
[1752641575937,0.62325256,117680.0,117670.0,0.15018]
[1752641576484,0.62325256,117680.0,117670.0,0.13508]
[1752641577119,0.62629256,117680.0,117670.0,0.13508]
[1752641581550,0.17506241,117680.0,117670.0,0.13508]
[1752641581764,0.62629256,117680.0,117670.0,0.13508]
[1752641585092,0.51340344,117680.0,117670.0,0.13508]
[1752641585707,0.51036344,117680.0,117670.0,0.13508]
[1752641585926,0.51036344,117680.0,117670.0,0.15048]
[1752641586141,0.51036344,117680.0,117670.0,0.16956]
[1752641587564,0.51340344,117680.0,117670.0,0.13508]
[1752641587761,0.51340344,117680.0,117670.0,0.133]
[1752641588106,0.85174447,117680.0,117670.0,0.133]
[1752641588311,0.17506241,117680.0,117670.0,0.133]
[1752641588521,0.85174447,117680.0,117670.0,0.133]
[1752641588926,0.93725475,117680.0,117670.0,0.003]
[1752641589135,0.93725475,117680.0,117670.0,0.13292]
[1752641589136,0.96875475,117680.0,117670.0,0.13292]
[1752641589342,0.95305475,117680.0,117670.0,0.13292]
[1752641594665,0.93725475,117680.0,117670.0,0.13292]
[1752641598362,0.26057269,117680.0,117670.0,0.13292]
[1752641598575,0.93725475,117680.0,117670.0,0.13292]
[1752641601314,0.93725475,117680.0,117670.0,0.13288]
[1752641604605,0.25753269,117680.0,117670.0,0.151791]
[1752641604799,0.16995241,117680.0,117670.0,0.184291]
[1752641605014,0.50829344,117680.0,117670.0,0.187221]
[1752641605359,0.17202241,117680.0,117670.0,0.187221]
[1752641605563,0.51036344,117680.0,117670.0,0.187221]
[1752641605761,0.17202241,117680.0,117670.0,0.187221]
[1752641605968,0.50829344,117680.0,117670.0,0.36568619]
[1752641606225,0.50829344,117680.0,117670.0,0.187221]
[1752641607214,0.16995241,117680.0,117670.0,0.70402715]
[1752641607431,0.01699415,117680.0,117670.0,0.74336193]
[1752641607850,0.01699415,117680.0,117670.0,0.4050209]
[1752641607851,0.02549148,117680.0,117670.0,0.4050209]
[1752641608062,0.02549148,117680.0,117670.0,0.74336193]
[1752641608978,0.0254914,117680.0,117670.0,0.85596583]
[1752641610551,0.03398887,117680.0,117670.0,0.85596583]
[1752641610770,0.04248641,117680.0,117670.0,0.4050209]
[1752641611009,0.04248641,117680.0,117670.0,0.40502104]
[1752641611231,0.04248706,117680.0,117670.0,0.40502104]
[1752641611675,0.04248706,117680.0,117670.0,0.41351887]
[1752641611894,0.04248706,117680.0,117670.0,0.70701887]
[1752641615979,0.03398944,117680.0,117670.0,0.70701887]
[1752641616197,0.01699443,117680.0,117670.0,0.70701887]
[1752641618937,0.02549176,117680.0,117670.0,0.70701887]
[1752641619153,0.03398923,117680.0,117670.0,0.70701887]
[1752641621212,0.03398923,117680.0,117670.0,1.1579638]
[1752641621213,0.01699415,117680.0,117670.0,1.1579638]
[1752641621402,0.01699415,117680.0,117670.0,0.70701887]
[1752641623206,0.0254914,117680.0,117670.0,0.70701887]
[1752641623415,0.03398873,117680.0,117670.0,0.70701887]
[1752641623753,0.0254914,117680.0,117670.0,0.70701887]
[1752641624471,0.0339888,117680.0,117670.0,0.70701887]
[1752641625458,0.01699415,117680.0,117670.0,0.70701887]
[1752641626245,0.01699408,117680.0,117670.0,0.70701887]
[1752641626826,0.01699408,117680.0,117670.0,1.1579638]
[1752641627043,0.20394136,117680.0,117670.0,0.70701887]
[1752641627496,0.03398895,117680.0,117670.0,0.70701887]
[1752641629002,0.03398895,117680.0,117670.0,1.04528001]
[1752641629348,0.20394136,117680.0,117670.0,1.04528001]
[1752641629784,0.03398888,117680.0,117670.0,1.04528001]
[1752641629983,0.02549141,117680.0,117670.0,1.04528001]
[1752641630421,0.03398888,117680.0,117670.0,1.04528001]
[1752641630582,0.03398888,117680.0,117670.0,0.70701887]
[1752641630793,0.03398888,117680.0,117670.0,1.04528001]
[1752641634004,0.02549141,117680.0,117670.0,1.04528001]
[1752641634515,0.03398888,117680.0,117670.0,1.04528001]
[1752641636308,0.21243891,117680.0,117670.0,0.69852104]
[1752641636517,0.20394194,117680.0,117670.0,1.03678218]
[1752641638115,0.00849711,117680.0,117670.0,1.04528001]
[1752641638336,0.01699444,117680.0,117670.0,1.04528001]
[1752641639541,0.02549191,117680.0,117670.0,1.04528001]
[1752641639757,0.02549184,117680.0,117670.0,1.04528001]
[1752641639972,0.01699444,117680.0,117670.0,1.04528001]
[1752641640187,0.01699436,117680.0,117670.0,1.04528001]
[1752641640386,0.00849697,117680.0,117670.0,1.03678131]
[1752641640804,0.00849697,117680.0,117670.0,0.69852017]
[1752641641007,0.00849697,117680.0,117670.0,1.03678131]
[1752641642071,0.01699415,117680.0,117670.0,0.69852017]
[1752641642289,0.03398887,117680.0,117670.0,1.03678131]
[1752641642896,0.19544467,117680.0,117670.0,0.63289416]
[1752641643872,0.18694742,117680.0,117670.0,0.62439597]
[1752641644014,0.18694742,117680.0,117670.0,0.63289416]
[1752641644574,0.18694742,117680.0,117670.0,0.64139228]
[1752641644731,0.18694742,117680.0,117670.0,0.63289416]
[1752641646043,0.18694742,117680.0,117670.0,0.71865378]
[1752641646264,0.18902742,117680.0,117670.0,0.71865378]
[1752641646443,0.18902742,117680.0,117670.0,0.71572378]
[1752641647149,0.18902742,117680.0,117670.0,0.7242219]
[1752641647328,0.51879109,117680.0,117670.0,0.57734559]
[1752641647548,0.54467355,117680.0,117670.0,0.44084085]
[1752641648308,0.54467355,117680.0,117670.0,0.6108077]
[1752641648870,0.54467355,117680.0,117670.0,0.61930604]
[1752641649310,0.52897355,117680.0,117670.0,0.62780431]
[1752641649481,0.51029355,117680.0,117670.0,0.63835243]
[1752641649688,0.17203241,117680.0,117670.0,0.64153243]
[1752641650711,0.18902706,117680.0,117670.0,1.06555319]
[1752641650959,0.18902706,117680.0,117670.0,1.07405124]
[1752641651090,0.18052995,117680.0,117670.0,1.07405124]
[1752641651296,0.18052995,117680.0,117670.0,0.7357901]
[1752641651966,0.18052995,117680.0,117670.0,0.72729205]
[1752641652396,0.18052995,117680.0,117670.0,0.71879393]
[1752641652595,0.17203241,117680.0,117670.0,0.71879393]
[1752641652966,0.17203241,117680.0,117670.0,0.62985431]
[1752641653449,0.17203241,117680.0,117670.0,0.63293431]
[1752641654069,0.17203241,117680.0,117670.0,0.6414325]
[1752641654265,0.51029355,117680.0,117670.0,0.6414325]
[1752641656338,0.51029355,117680.0,117670.0,0.63293431]
[1752641656509,0.51029355,117680.0,117670.0,0.62135604]
[1752641656836,0.51346355,117680.0,117670.0,0.44289085]
[1752641657286,0.51346355,117680.0,117670.0,0.62410199]
[1752641658075,0.51346355,117680.0,117670.0,0.62135604]
[1752641658682,0.51346355,117680.0,117670.0,0.45138919]
[1752641659389,0.51029355,117680.0,117670.0,0.62135604]
[1752641659807,0.51029355,117680.0,117670.0,0.62443604]
[1752641660058,0.51029355,117680.0,117670.0,0.63293431]
[1752641661261,0.51879117,117680.0,117670.0,0.64993062]
[1752641661485,0.18053003,117680.0,117670.0,0.64993062]
[1752641662332,0.51879117,117680.0,117670.0,0.64993062]
[1752641666301,0.51879117,117680.0,117670.0,0.73569024]
[1752641667526,0.18053003,117680.0,117670.0,0.73569024]
[1752641667773,0.51879117,117680.0,117670.0,0.73569024]
[1752641669093,0.51879117,117680.0,117670.0,0.64993062]
[1752641670363,0.18053003,117680.0,117670.0,0.64993062]
[1752641672448,0.18053003,117680.0,117670.0,0.6414325]
[1752641672669,0.51879117,117680.0,117670.0,0.62689165]
[1752641674527,0.18053003,117680.0,117670.0,0.62689165]
[1752641676369,0.51879117,117680.0,117670.0,0.62689165]
[1752641677266,0.18053003,117680.0,117670.0,0.62689165]